Cogmind - Beta 16 *** ADVENTURER MODE // 2025.11.03 @ 14:45:27 Player: zxpr0jk Result: Self-destructed Performance ------------- Evolutions (1) 500 Regions Visited (2) 400 Robots Destroyed (11) 55 Value Destroyed (347) 347 Prototype IDs (2) 40 Alien Tech Used (0) 0 Bonus (0) 0 TOTAL SCORE: 1342 Bonus ------- None Cogmind --------- Core Integrity 271/400 Matter 284/300 Energy 265/265 System Corruption 2% Temperature Cool (9) Movement Treading (160) Location -9/Materials Parts ------- > --- POWER (1) -------- Improved Ion Engine > --- PROPULSION (3) --- Light Treads Light Treads > --- UTILITY (3) ------ Visual Processing Unit ECM Suite Light Armor Plating > --- WEAPON (2) ------- EM Pulse Gun Heavy EM Pulse Gun > --- INVENTORY (5) ---- Improved Ion Engine Flight Unit Peak State ------------ > --- POWER ------------ Improved Ion Engine > --- PROPULSION ------- Light Treads Light Treads Flight Unit > --- UTILITY ---------- Visual Processing Unit Light Armor Plating > --- WEAPON ----------- EM Pulse Gun Heavy EM Pulse Gun > --- INVENTORY -------- Improved Ion Engine Aluminum Leg Aluminum Leg [Rating: 11] Favorites ----------- Power Improved Ion Engine Engine Improved Ion Engine Propulsion Flight Unit Treads Light Treads Leg Aluminum Leg Wheel Wheel Flight Unit Flight Unit Utility Light Armor Plating Device ECM Suite Processor Visual Processing Unit Protection Light Armor Plating Weapon EM Pulse Gun Energy Gun EM Pulse Gun Build | -11 -10 -9 ------- Run | Yrd Mat Mat Slots Evolved 2 | . . 2 Power . | . . . Propulsion 1 | . . 1 Utility 1 | . . 1 Weapon . | . . . Parts Attached 21 | 5 6 10 Power 4 | 1 1 2 Engine 4 | 1 1 2 Core . | . . . Reactor . | . . . Propulsion 8 | 2 2 4 Treads 2 | . . 2 Leg 2 | . . 2 Wheel 2 | 2 . . Hover . | . . . Flight 2 | . 2 . Utility 3 | . . 3 Device 1 | . . 1 Storage . | . . . Processor 1 | . . 1 Hackware . | . . . Protection 1 | . . 1 Artifact . | . . . Weapon 6 | 2 3 1 Energy Gun 6 | 2 3 1 Energy Cannon . | . . . Ballistic Gun . | . . . Ballistic Cannon . | . . . Launcher . | . . . Special Weapon . | . . . Impact Weapon . | . . . Slashing Weapon . | . . . Piercing Weapon . | . . . Special Melee Weapon . | . . . Unidentified Prototypes . | . . . Corrupted Parts 1 | . . 1 System Corruption 1 | . . 1 Parts Lost 3 | . . 3 Power 1 | . . 1 Propulsion 1 | . . 1 Utility . | . . . Weapon 1 | . . 1 Highest Loss Streak 3 | . . 3 To Critical Strikes . | . . . Average Backups 2 | . 2 2 Power . | . 1 . Propulsion . | . . . Utility . | . . . Weapon 1 | . 1 1 Tool/Special . | . . . Unused Backups 1 | . 1 . Power . | . . . Propulsion . | . . . Utility 1 | . 1 . Weapon . | . . . Tool/Special . | . . . Average Slot Usage (%) 66 | . 71 63 Engine 12 | . 14 10 Treads 5 | . . 9 Wheel 4 | . 11 . Flight 12 | . 16 10 Processor 2 | . . 3 Protection 3 | . . 6 Energy Gun 24 | . 28 22 Peak Build Rating 11 | 5 6 11 Average Rating 6 | 4 5 7 On Entrance 3 | . 5 6 Avg Prop Armor Cover (%) 8 | . . 8 Naked Turns . | . . . Heaviest Build 17 | 8 8 17 Greatest Support 26 | 26 26 20 Greatest Overweight (x) 4 | . . 4 Average Overweight (x) . | . . . Largest Inventory Capacity 5 | 5 5 5 Average Capacity 5 | 5 5 5 Most Carried 5 | 2 4 5 Average Carried 2 | . 2 2 Final Capacity 5 | 5 5 5 Final Carried 4 | 2 4 2 Class Distribution -------------------- 66% | Mutant 33% | Scavenger-Mutant Dominant Class ---------------- Mutant | -10/Materials Scavenger-Mutant | -9/Materials Resources | -11 -10 -9 ----------- Run | Yrd Mat Mat Matter Collected 398 | 197 46 155 Remotely . | . . . Salvage Created 461 | . 33 428 Parts 26 | . 2 24 Haulers Intercepted . | . . . Recyclers Shooed . | . . . Parts Field Recycled . | . . . Retrieved Matter . | . . . Parts Self-Destructed . | . . . Prevented . | . . . Parts Restored . | . . . Kills | -11 -10 -9 ------- Run | Yrd Mat Mat Combat Hostiles Destroyed 9 | . 2 7 Guns 8 | . 2 6 Classes Destroyed 4 | . 1 3 Watcher 2 | . . 2 Swarmer 2 | . 2 . Grunt 3 | . . 3 Sentry 4 | . . 4 Best Kill Streak 4 | . 2 4 Combat Bots Only 4 | . 2 4 Max Kills in Single Turn 1 | . 1 1 Gunslinging . | . . . Exploded . | . . . Melee . | . . . Uniques/NPCs Destroyed . | . . . Combat | -11 -10 -9 -------- Run | Yrd Mat Mat Hostile Shots Fired 56 | . 4 52 Missed 16 | . 2 14 Hits 40 | . 2 38 Projectile 40 | . 2 38 Critical Strikes 6 | . . 6 Damage Taken 468 | . 12 456 Core 129 | . . 129 Absorbed by Shields . | . . . Ignored by Resistances 136 | . 4 132 Core Remaining (%) 100 | 100 100 . Volleys Fired 29 | . 3 26 Largest 2 | . 2 2 Hottest 90 | . 90 85 Shots Fired 54 | . 6 48 Gun 54 | . 6 48 Cannon . | . . . Launcher . | . . . Special . | . . . Kinetic . | . . . Thermal 6 | . 6 . Explosive . | . . . Electromagnetic 48 | . . 48 Robot Hit Streak 23 | . 3 23 Robot Miss Streak 1 | . 1 1 Penetration Max . | . . . Secondary Targets . | . . . Shots Hit Robots 43 | . 5 38 Core Hits 15 | . 2 13 Critical Kills . | . . . Critical Parts Destroyed . | . . . Critical Strikes 1 | . . 1 Corrupt 1 | . . 1 Melee Attacks . | . . . Impact . | . . . Slashing . | . . . Piercing . | . . . Sneak Attacks . | . . . Combat Hostiles . | . . . Follow-up Attacks . | . . . Damage Inflicted 651 | . 57 594 Guns 567 | . 57 510 Cannons . | . . . Explosions 84 | . . 84 Melee . | . . . Ramming . | . . . Kinetic . | . . . Thermal 141 | . 57 84 Explosive . | . . . Electromagnetic 510 | . . 510 Impact . | . . . Slashing . | . . . Piercing . | . . . Highest Corruption 2 | . . 2 Average Corruption 1 | . . 1 Corruption Purged . | . . . Corruption Blocked . | . . . Effects 1 | . . 1 Matter Fused 1 | . . 1 Overload Shots . | . . . Overflow Damage . | . . . Projectiles . | . . . Explosions . | . . . Melee . | . . . Knockbacks . | . . . Impact . | . . . Kinetic . | . . . Secondary . | . . . Self-Inflicted Damage . | . . . Shots . | . . . Rammed . | . . . Targets Rammed . | . . . Kicked . | . . . Crushed . | . . . Highest Temperature 398 | . 80 398 Average Temperature 155 | . 35 167 Received Heat Transfer 351 | . . 351 Effects 1 | . . 1 Shutdowns 1 | . . 1 Siege Activations . | . . . Martial Activations . | . . . Shielding Activations . | . . . Robots Disrupted . | . . . Combat Hostiles . | . . . Robots Corrupted 1 | . . 1 Combat Hostiles 1 | . . 1 Parts Fried . | . . . Impact Corruptions . | . . . Robots Melted . | . . . Combat Hostiles . | . . . Parts Melted . | . . . Heat Transferred 299 | . 149 150 Parts Sabotaged . | . . . Parts Stolen . | . . . Parts Stripped . | . . . Power Chain Reactions 1 | . . 1 Alert | -11 -10 -9 ------- Run | Yrd Mat Mat Maximum Alert Level . | . . . Low Security (%) 100 | 100 100 100 Level 1 . | . . . Level 2 . | . . . Level 3 . | . . . Level 4 . | . . . Level 5 . | . . . High Security . | . . . Max Security . | . . . Peak Influence 122 | . 54 122 Initial . | . . . Average 49 | . 22 78 Influence Increases 305 | . 68 237 Destroy 0b10 Robot/C 180 | . 40 140 Destroy 0b10 Robot/NC 10 | . . 10 Destroy Leader 64 | . 10 54 Successful Hack 18 | . 18 . Destroy Structure 3 | . . 3 Partial Spotted 15 | . . 15 Lose Combat Pursuer 15 | . . 15 Influence Decreases 208 | . 68 140 Time Decay 178 | . 68 110 Lost Part 30 | . . 30 Squads Dispatched . | . . . Investigation . | . . . Extermination . | . . . Reinforcement . | . . . Assault . | . . . Garrison . | . . . Intercept . | . . . Searches Triggered . | . . . Construction Impeded . | . . . Haulers Reinforced . | . . . Active Scanning Responses . | . . . Cargo Convoy Interrupts . | . . . Stealth | -11 -10 -9 --------- Run | Yrd Mat Mat Distress Signals 2 | . 1 1 Communications Jammed . | . . . Distress Signals . | . . . Times Spotted 20 | . 5 15 Peak Tracking Total 4 | . 4 4 Tactical Retreats 1 | . . 1 Traps | -11 -10 -9 ------- Run | Yrd Mat Mat Traps Triggered 1 | . . 1 Indirectly . | . . . Trap Hack Attempts . | . . . Triggered . | . . . Disarmed . | . . . Reprogrammed . | . . . Reused . | . . . Traps Extracted . | . . . Installed . | . . . Triggered . | . . . Machines | -11 -10 -9 ---------- Run | Yrd Mat Mat Machines Disabled . | . . . Max in Single Turn . | . . . Machines Repaired . | . . . Machines Dismantled . | . . . Machines Sabotaged . | . . . Overloaded Fab Kills . | . . . Hacking | -11 -10 -9 --------- Run | Yrd Mat Mat Machines Accessed 6 | . 6 . Terminals 6 | . 6 . Fabricators . | . . . Repair Stations . | . . . Recycling Units . | . . . Scanalyzers . | . . . Garrison Access . | . . . Total Hacks 16 | . 16 . Successful 9 | . 9 . Failed 7 | . 7 . Catastrophic . | . . . Database Lockouts . | . . . Manual 15 | . 15 . Terminals 16 | . 16 . Fabricators . | . . . Repair Stations . | . . . Recycling Units . | . . . Scanalyzers . | . . . Garrison Access . | . . . Terminal Hacks 1 | . 1 . Prototype ID Bank 1 | . 1 . Fabricator Hacks . | . . . Repair Station Hacks . | . . . Recycling Unit Hacks . | . . . Scanalyzer . | . . . Garrison Access Hacks . | . . . Unauthorized Hacks 8 | . 8 . Terminals 8 | . 8 . Assimilate 1 | . 1 . Botnet 2 | . 2 . Skim 5 | . 5 . Fabricators . | . . . Repair Stations . | . . . Recycling Units . | . . . Scanalyzers . | . . . Garrison Access . | . . . Data Cores Recovered . | . . . Used . | . . . Hacking Detections 5 | . 5 . Full Trace Events . | . . . Feedback Events . | . . . Feedback Blocked . | . . . Robot Schematics Acquired . | . . . Robots Built . | . . . Authchips . | . . . Time . | . . . Total Robot Build Rating . | . . . Part Schematics Acquired . | . . . Parts Built . | . . . Authchips . | . . . Time . | . . . Total Part Build Rating . | . . . Part Studies Acquired . | . . . Parts Repaired . | . . . Time . | . . . Parts Recycled . | . . . Recycled Matter . | . . . Retrieved Matter . | . . . Retrieved Components . | . . . Parts Scanalyzed . | . . . Part Schematics Acquired . | . . . Parts Damaged . | . . . Bothacking | -11 -10 -9 ------------ Run | Yrd Mat Mat Used RIF Installer . | . . . Robots Hacked . | . . . Non-combat . | . . . Combat . | . . . Robot Hacks Applied . | . . . Relay Couplers Released . | . . . Fabnet Peak Effective % . | . . . Robots Rewired . | . . . Allies Hacked . | . . . Hacks Repelled . | . . . Allies | -11 -10 -9 -------- Run | Yrd Mat Mat Total Allies . | . . . Largest Group . | . . . Highest-Rated Group . | . . . Highest-Rated Ally . | . . . Total Orders . | . . . Ally Attacks . | . . . Total Damage . | . . . Kills . | . . . Allies Corrupted . | . . . Allies Melted . | . . . Intel | -11 -10 -9 ------- Run | Yrd Mat Mat Active Infowar (turns) 87 | . . 87 Optics 87 | . . 87 ECM 8 | . . 8 Robot Analysis Total . | . . . Derelict Logs Recovered . | . . . Drone Launches . | . . . Drone Recoveries . | . . . Exploration | -11 -10 -9 ------------- Run | Yrd Mat Mat Turns Passed 471 | 47 180 244 Spaces Moved 519 | 43 323 153 Core 4 | 2 . 2 Treads 49 | . . 49 Legs 3 | . . 3 Wheels 106 | 41 65 . Hover . | . . . Flight 357 | . 258 99 Fastest Speed 37 | 50 37 37 Average Speed 64 | 87 47 93 Slowest Speed 280 | 90 90 280 Overloaded Moves . | . . . Propulsion Burnouts . | . . . Robots Hopped . | . . . Potential Cave-ins . | . . . Cave-ins Triggered . | . . . Exploration Rate (%) 24 | 3 52 18 Regions Visited 2 Branch Regions . Pre-discovered Areas . | . . . Known Exits Taken . | . . . Unknown Exits Taken 2 | 1 1 . Scrap Searched . | . . . Spaces Dug . | . . . Terrain Destroyed 3 | . . 3 Melee . | . . . Projectile . | . . . AOE 3 | . . 3 Terrain Rammed . | . . . Walls Destroyed . | . . . Machines Disabled . | . . . Actions | -11 -10 -9 --------- Run | Yrd Mat Mat Total 596 | 49 342 205 Wait 5 | . . 5 Move 517 | 42 322 153 Hop . | . . . Pick Up 10 | 2 6 2 Fast Attach 11 | 5 . 6 Attach 4 | . 1 3 Detach 4 | . 1 3 Swap 7 | . 5 2 Drop 9 | . 4 5 Fire 29 | . 3 26 Melee . | . . . Ram . | . . . Kick . | . . . Crush . | . . . Escape Stasis . | . . . Rewire . | . . . Trap . | . . . Miscellaneous . | . . . Route ------- -11/Scrapyard -10/Materials (discovered 2 exits: [*Mat] / [*Min]) -9/Materials (discovered 1 exit: [*Sto]) History --------- Turn | Location | Event 16 | -11/Scrapyard | Discovered new exit (range 16) 48 | -11/Scrapyard | Entered Materials 125 | -10/Materials | Discovered new exit (range 15) 134 | -10/Materials | Discovered new exit (range 15) 228 | -10/Materials | Entered another Materials area 228 | -9/Materials | Evolved 2 slots: Propulsion x1, Utility x1 270 | -9/Materials | Discovered new exit (range 13) 340 | -9/Materials | Lost 3 parts (1p1n1w) 472 | -9/Materials | Self-destructed Last Messages --------------- 00356_ U-05 Engineer lays Concrete. 00360_ Acquired Corrupted Lgt. Treads. 00360_ Integrated Corrupted Lgt. Treads (+1). 00360_ Corrupted Lgt. Treads temporarily disabled. 00366_ W-16 Scout distress signal alerts nearby ally. 00367_ Acquired Lgt. Treads. 00373_ W-16 Scout destroyed. 00382_ Acquired 50 matter. 00385_ Acquired Visual Processing Unit. 00387_ Dropped Aluminum Leg. 00388_ Acquired 10 matter. 00392_ Critical hit (Burn: +37). 00400_ K-01 Serf collects debris. 00401_ Y-45 Defender destroyed. 00404_ K-01 Serf collects debris. 00444_ System corrupted: Matter fused (-6). 00464_ Acquired ECM Suite. 00471_ Triggered EMP Trap. 00471_ A bubble of electromagnetic force engulfs the area. 00471_ Door malfunctions. Map ----- +----------------------------------------------------+ | | | | | | | | | | | | | | | | | | | | | | | | | | | | | | | | | | | ????????????????????#######??????????????????????? | | ????????????????????# #?????????????????????? | | ????????????????????# #?????????????????????? | | ????????????????????# ###################???? | | ????????????????????# ! / #???? | | ????????????????????# ! ##### ########### #???? | | ????????????????????#! #???# #?????????# #???? | | ????????????????########/### #?????????# #???? | | ???????? @ #?????????# #???? | | ???????? Y +?????????# #???? | | ???????? r #?????????# #???? | | ????????? ##### ####/### #?????????# #?### | | ?????????#????????#???? ??#######?????????# #?# | | ??????????????????????? ??????????????????# #?# | | ??????????????????????# ??????????????????# #?# | | ??????????????????????#]]??????###/#?????### ### | | ??????????????????????#] ??????# ##### # " | | ??????????????????????# ???????# ! # " | | ??????????????????????# ???????# < %[ + " | | ??????????????????????##???????# = # " | | ???????????????????????????????# ##### [ # " | | ???????????????????????????????#####?????## [## | | ??????????????????????????????????????????#== ## | | ??????????????????????????????????????????#=*=## | | ??????????????????????????????????????????#%%%#### | | ?????????????????????????????????????????##[%[##?? | | ???????????????????????????????# #####%!= #?? | | ???????????????????????????????# [** #?? | | ???????????????????????????????# " =% #?? | | ???????????????????????????????# #?? | | ???????????????????????????????# ##### #?? | | ???????????????????????????????## ?????#######?? | | ????????????????????????????????# ???????????????? | +----------------------------------------------------+ Best States ------------- Heat Dissipation 28 Energy Generation 12 Energy Capacity 265 Matter Stores 300 Matter Capacity 300 Sight Range 18 Terrain Scan Density 10 ECM Strength 1 Armor Coverage 150 Resistance: KI 20 Resistance: TH 20 Resistance: EX 20 Resistance: EM 20 Resistance: I 20 Resistance: S 20 Resistance: P 20 Evasion (%) 62 Recoil Reduction 1 Offensive Hacking 10 Item Schematics ----------------- None Robot Schematics ------------------ None Fabricated ------------ Nothing Repaired ---------- Nothing Studied --------- None Alien Tech Used ----------------- None Achievements -------------- None Challenges ------------ None Game ------ Seed SpreadCompanionDisintegrator Manual? 0 Play Time 00:09:09 Cumulative 53.0 hours Start 2025.11.03 @ 14:36:07 End 2025.11.03 @ 14:45:27 Sessions 1 Manual Loads 0 Difficulty Adventurer Special Mode None Game No. 38 Rogue 13 Adventurer 25 Explorer 0 Win Type - Total 0 Types 0/0/0/0/0/0/0/0/0/0 Lore% 19 Gallery% 31 Achievement% 23 Wizard Run 0 Options --------- Layout 0 ASCII 0 Keyboard 1 Movement Numpad Keybinds 0 Fullscreen 2 Font 18/X11 Map View 76x50 Zoom Use 0% Tactical HUD 1 Map Filters NONE Filters NONE Steam 1 RUN: eab71267-b862-4d6f-bffe-8adabe2b90cf